[Event "4NCL Div 1 2018-19"]
[Site "Daventry"]
[Date "2018.11.10"]
[Round "1"]
[White "Franklin, Samuel G A"]
[Black "Mihalik, Agoston"]
[Result "1-0"]
[ECO "B80"]
[WhiteElo "2316"]
[BlackElo "2223"]
[Annotator "NA"]
[PlyCount "57"]
[EventDate "2018.11.10"]
[EventType "team-tourn"]
[EventCountry "GBR"]
[SourceTitle "playchess.com"]
[Source "ChessBase"]
[SourceQuality "1"]
[TimeControl "40/6000+30:3000+30"]

1. e4 {[%emt 0:00:29]} c5 {[%emt 0:00:00]} 2. Nf3 {[%emt 0:00:44]} d6 {[%emt 0:00:00]} 3. d4 {[%emt 0:00:10]} cxd4 {[%emt 0:00:00]} 4. Nxd4 {[%emt 0:00:12]} Nf6 {[%emt 0:00:00]} 5. Nc3 {[%emt 0:00:06]} a6 {[%emt 0:00:00]} 6. f3 {[%emt 0:01:04]} e6 {[%emt 0:00:15]} 7. Be3 {[%emt 0:01:14]} b5 {[%emt 0:00:09]} 8. Qd2 {[%emt 0:00:58]} Bb7 {[%emt 0:09:53]} 9. O-O-O {[%emt 0:02:29]} b4 {[%emt 0:02:51]} 10. Nce2 {[%emt 0:06:08]} d5 {[%emt 0:01:05] [#]} 11. e5 $1 {[%emt 0:15:49]} Nfd7 {[%emt 0:02:22]} 12. f4 {[%emt 0:00:15]} Be7 {[%emt 0:09:42]} 13. Kb1 {[%emt 0:05:15]} O-O {[%emt 0:12:14]} 14. g4 {[%emt 0:03:50]} a5 {[%emt 0:00:32]} 15. g5 {[%emt 0:10:33]} Na6 {[%emt 0:15:05]} 16. h4 $11 {[%emt 0:04:57]} a4 {[%emt 0:06:08]} 17. h5 {[%emt 0:14:00]} b3 {[%emt 0:02:24]} 18. cxb3 {[%emt 0:05:51]} Ndc5 {[%emt 0:09:53]} 19. Bg2 {[%emt 0:06:13]} Qb6 {[%emt 0:13:15]} 20. f5 {[%emt 0:04:58]} axb3 {[%emt 0:02:55]} 21. a3 {[%emt 0:00:34]} Rfe8 {[%emt 0:09:29]} 22. fxe6 {[%emt 0:04:03]} fxe6 {[%emt 0:00:06]} 23. g6 {[%emt 0:00:34]} Nc7 {[%emt 0:01:19]} 24. h6 {[%emt 0:01:50]} Nb5 {[%emt 0:06:12]} 25. Nxb5 {[%emt 0:02:25]} Qxb5 {[%emt 0:00:10]} 26. Nd4 {[%emt 0:00:35]} Qa6 {[%emt 0:02:06]} 27. gxh7+ {[%emt 0:01:45]} Kh8 {[%emt 0:00:54]} 28. hxg7+ {[%emt 0:03:13]} Kxg7 {[%emt 0:00:04]} 29. Bf1 {[%emt 0:00:56]} 1-0

[Event "4NCL Div 1 2018-19"]
[Site "Daventry"]
[Date "2018.11.10"]
[Round "1"]
[White "McKay, Roderick M"]
[Black "Plat, Vojtech"]
[Result "0-1"]
[ECO "C41"]
[WhiteElo "2309"]
[BlackElo "2543"]
[Annotator "ChessBase"]
[PlyCount "44"]
[EventDate "2018.11.10"]
[EventType "team-tourn"]
[EventCountry "GBR"]
[SourceTitle "playchess.com"]
[Source "ChessBase"]
[SourceQuality "1"]
[TimeControl "40/6000+30:3000+30"]

1. d4 {[%emt 0:00:00]} d6 {[%emt 0:00:01]} 2. e4 {[%emt 0:00:52]} Nf6 {[%emt 0:00:07]} 3. Nc3 {[%emt 0:00:34]} e5 {[%emt 0:00:04]} 4. Nf3 {[%emt 0:01:20]} Nbd7 {[%emt 0:00:07]} 5. Rg1 {[%emt 0:04:43]} c6 {[%emt 0:00:56]} 6. g4 {[%emt 0:00:47]} g6 {[%emt 0:06:11]} 7. Be3 {[%emt 0:18:20]} Bg7 {[%emt 0:00:20]} 8. g5 {[%emt 0:04:21]} Nh5 {[%emt 0:01:17]} 9. Qd2 {[%emt 0:00:34]} O-O {[%emt 0:01:03]} 10. O-O-O {[%emt 0:03:15]} b5 {[%emt 0:00:35]} 11. dxe5 {[%emt 0:02:30]} b4 {[%emt 0:04:24]} 12. Nb1 {[%emt 0:03:23]} Qa5 {[%emt 0:03:23]} 13. a3 {[%emt 0:12:10]} Nxe5 {[%emt 0:00:35]} 14. axb4 {[%emt 0:05:53]} Qa1 {[%emt 0:00:20]} 15. Nxe5 {[%emt 0:05:57]} Bxe5 {[%emt 0:02:29]} 16. c3 {[%emt 0:00:39]} a5 {[%emt 0:02:31]} 17. f4 {[%emt 0:03:30]} Bg7 {[%emt 0:00:42]} 18. b5 {[%emt 0:17:25]} a4 {[%emt 0:01:23]} 19. Bd4 {[%emt 0:04:06]} Be6 {[%emt 0:00:40]} 20. Bxg7 {[%emt 0:04:52]} Nxg7 {[%emt 0:00:12]} 21. b6 {[%emt 0:06:05]} Rfb8 {[%emt 0:00:21]} 22. Qxd6 {[%emt 0:03:18]} a3 {[%emt 0:06:20]} 0-1

[Event "4NCL Div 1 2018-19"]
[Site "Daventry"]
[Date "2018.11.10"]
[Round "1"]
[White "Rogers, Jonathan W"]
[Black "Kett, Tim"]
[Result "1-0"]
[ECO "C47"]
[WhiteElo "2299"]
[BlackElo "2206"]
[Annotator "NA"]
[PlyCount "53"]
[EventDate "2018.11.10"]
[EventType "team-tourn"]
[EventCountry "GBR"]
[SourceTitle "playchess.com"]
[Source "ChessBase"]
[SourceQuality "1"]
[TimeControl "40/6000+30:3000+30"]

1. e4 {[%emt 0:08:02]} e5 {[%emt 0:00:00]} 2. Nf3 {[%emt 0:00:04]} Nc6 {[%emt 0:00:00]} 3. Nc3 {[%emt 0:00:08]} Nf6 {[%emt 0:00:14]} 4. Be2 {[%emt 0:00:09]} d5 {[%emt 0:11:22]} 5. exd5 {[%emt 0:00:31]} Nxd5 {[%emt 0:02:06]} 6. O-O {[%emt 0:03:26]} Nxc3 {[%emt 0:00:40]} 7. bxc3 {[%emt 0:00:08]} Bd6 {[%emt 0:00:42]} 8. d4 {[%emt 0:06:03]} exd4 {[%emt 0:02:25]} 9. cxd4 {[%emt 0:01:41]} O-O {[%emt 0:01:05]} 10. Rb1 {[%emt 0:02:39]} b6 {[%emt 0:05:13]} 11. Bg5 {[%emt 0:02:11]} Qd7 {[%emt 0:02:01]} 12. c4 {[%emt 0:05:33]} Nd8 {[%emt 0:31:36]} 13. c5 {[%emt 0:05:22]} bxc5 {[%emt 0:09:07]} 14. dxc5 {[%emt 0:00:24]} Bxc5 {[%emt 0:01:34]} 15. Qc2 $14 {[%emt 0:01:32]} Ne6 {[%emt 0:06:05]} 16. Rfd1 {[%emt 0:06:35]} Qe8 {[%emt 0:08:58]} 17. Bc4 {[%emt 0:03:17]} h6 {[%emt 0:05:24]} 18. Bh4 {[%emt 0:06:56]} g5 {[%emt 0:04:33]} 19. Bxe6 {[%emt 0:03:03]} Bxe6 {[%emt 0:04:54]} 20. Bxg5 {[%emt 0:01:14]} hxg5 {[%emt 0:06:41]} 21. Nxg5 {[%emt 0:00:51]} f5 {[%emt 0:00:45]} 22. Re1 {[%emt 0:02:53]} Rf6 {[%emt 0:02:39]} 23. Qxc5 {[%emt 0:00:08]} Qg6 {[%emt 0:00:13]} 24. Qc6 {[%emt 0:01:36]} Re8 {[%emt 0:00:52]} 25. h4 {[%emt 0:00:20]} f4 {[%emt 0:01:14]} 26. h5 {[%emt 0:04:40]} Bd7 {[%emt 0:01:42]} 27. Qd5+ {[%emt 0:00:20]} 1-0

[Event "4NCL Div 1 2018-19"]
[Site "Daventry"]
[Date "2018.11.10"]
[Round "1"]
[White "Abbas, Daniel"]
[Black "Sygnowski, Tomasz"]
[Result "1-0"]
[ECO "C08"]
[WhiteElo "2281"]
[BlackElo "2153"]
[Annotator "NA"]
[PlyCount "83"]
[EventDate "2018.11.10"]
[EventType "team-tourn"]
[EventCountry "GBR"]
[SourceTitle "playchess.com"]
[Source "ChessBase"]
[SourceQuality "1"]
[TimeControl "40/6000+30:3000+30"]

1. e4 {[%emt 0:00:00]} e6 {[%emt 0:00:14]} 2. d4 {[%emt 0:00:00]} d5 {[%emt 0:00:03]} 3. Nd2 {[%emt 0:00:39]} c5 {[%emt 0:02:09]} 4. exd5 {[%emt 0:00:26]} exd5 {[%emt 0:00:16]} 5. Ngf3 {[%emt 0:00:29]} Nf6 {[%emt 0:01:16]} 6. Bb5+ {[%emt 0:01:22]} Nc6 {[%emt 0:05:51]} 7. O-O {[%emt 0:01:10]} Be7 {[%emt 0:01:55]} 8. dxc5 {[%emt 0:00:52]} O-O {[%emt 0:00:10]} 9. Nb3 {[%emt 0:03:27]} Bg4 {[%emt 0:03:44]} 10. h3 {[%emt 0:12:38] C08: French Tarrasch: 3...c5 4 exd5 exd5 sidelines} Bh5 {[%emt 0:00:08]} 11. Be3 {[%emt 0:04:07]} (11. Be2 Ne4 12. Be3 Re8 13. c3 Bf6 14. Nfd2 Bxe2 15. Qxe2 Bg5 16. Nxe4 Rxe4 17. Bxg5 Rxe2 18. Bxd8 Rxd8 {½-½ (47) Wang,Y (2369)-Gunina,V (2462) Ningbo 2010}) 11... Qc7 {[%emt 0:05:14]} 12. Be2 {[%emt 0:04:23]} Rfd8 $146 {[%emt 0:05:01]} ({Predecessor:} 12... Rfe8 13. c3 Rad8 14. Qc2 Ne4 15. Rfe1 Bf6 16. Nfd4 Bg6 17. Qc1 a6 18. Nxc6 Qxc6 {1-0 (38) Lazar,A (2305)-Pukl,D (2072) Slovenia 2013}) 13. Nfd4 {[%emt 0:04:21]} Bg6 {[%emt 0:07:14]} 14. Nb5 {[%emt 0:18:35]} Qd7 {[%emt 0:06:03]} 15. Bf4 {[%emt 0:14:00]} Ne4 {[%emt 0:27:03]} 16. Bg4 {[%emt 0:04:16]} Bf5 {[%emt 0:03:06]} 17. Bf3 {[%emt 0:02:09]} Nxc5 {[%emt 0:09:47]} 18. Nc7 {[%emt 0:09:48]} Rac8 {[%emt 0:12:20]} 19. Nxd5 {[%emt 0:01:31]} Nxb3 {[%emt 0:05:26]} 20. axb3 {[%emt 0:00:41]} Bc5 {[%emt 0:00:20]} 21. Bg5 {[%emt 0:08:27]} Nd4 {[%emt 0:04:14]} 22. Bxd8 {[%emt 0:03:37]} Bxc2 {[%emt 0:00:14]} 23. Qd2 {[%emt 0:02:43]} Rxd8 {[%emt 0:02:52]} 24. Rac1 {[%emt 0:03:35]} Qf5 {[%emt 0:03:44]} 25. Rxc2 {[%emt 0:03:27]} Nxf3+ {[%emt 0:01:30]} 26. gxf3 {[%emt 0:00:14]} Qxd5 {[%emt 0:00:49]} 27. Qxd5 {[%emt 0:01:07]} Rxd5 {[%emt 0:00:04]} 28. b4 {[%emt 0:00:35]} Bb6 {[%emt 0:00:45]} 29. Rc8+ {[%emt 0:01:41]} Bd8 {[%emt 0:00:06]} 30. Ra1 {[%emt 0:00:13]} g6 {[%emt 0:01:37]} 31. Rxa7 {[%emt 0:00:17]} Kg7 {[%emt 0:00:01]} 32. Rxb7 {[%emt 0:00:13]} Bh4 {[%emt 0:00:58]} 33. Rcc7 {[%emt 0:01:14]} Rf5 {[%emt 0:00:29]} 34. Kg2 {[%emt 0:00:19]} Rg5+ {[%emt 0:00:01]} 35. Kf1 {[%emt 0:00:46]} Rf5 {[%emt 0:00:01]} 36. Ke2 {[%emt 0:00:58]} Re5+ {[%emt 0:00:10]} 37. Kf1 {[%emt 0:00:42]} Rf5 {[%emt 0:00:01]} 38. Rc3 {[%emt 0:00:06]} Rd5 {[%emt 0:00:07]} 39. Rbc7 {[%emt 0:00:35]} Bf6 {[%emt 0:00:58]} 40. Rb3 {[%emt 0:00:59]} Bd8 {[%emt 0:01:13]} 41. Rc5 {[%emt 0:51:14]} Rd2 {[%emt 0:04:34]} 42. Ke1 $18 {[%emt 0:00:00]} 1-0

[Event "4NCL Div 1 2018-19"]
[Site "Daventry"]
[Date "2018.11.10"]
[Round "1"]
[White "Townsend, M Paul"]
[Black "Coathup, Roger H"]
[Result "1-0"]
[ECO "E94"]
[WhiteElo "2240"]
[BlackElo "2162"]
[Annotator "NA"]
[PlyCount "109"]
[EventDate "2018.11.10"]
[EventType "team-tourn"]
[EventCountry "GBR"]
[SourceTitle "playchess.com"]
[Source "ChessBase"]
[SourceQuality "1"]
[TimeControl "40/6000+30:3000+30"]

1. d4 {[%emt 0:00:00]} Nf6 {[%emt 0:00:00]} 2. c4 {[%emt 0:00:00]} g6 {[%emt 0:00:00]} 3. Nc3 {[%emt 0:00:15]} Bg7 {[%emt 0:00:00]} 4. e4 {[%emt 0:00:20]} d6 {[%emt 0:00:00] LiveBook: 52304 Games} 5. Nf3 {[%emt 0:00:24]} O-O {[%emt 0:00:00]} 6. Be2 {[%emt 0:00:10]} c6 {[%emt 0:00:11]} 7. O-O {[%emt 0:00:38]} e5 {[%emt 0:00:53]} 8. d5 {[%emt 0:08:57]} Na6 {[%emt 0:00:15]} 9. Bg5 {[%emt 0:09:02]} h6 {[%emt 0:03:40] E94: King's Indian: Classical: 6 Be2 e5 7 0-0: Various Black 7th moves} 10. Bh4 {[%emt 0:02:03]} c5 {[%emt 0:11:03]} 11. Nd2 {[%emt 0:04:55]} Nc7 {[%emt 0:02:38]} 12. a3 {[%emt 0:03:49]} Qe8 {[%emt 0:08:45]} 13. b4 {[%emt 0:01:10]} b6 {[%emt 0:00:12] [#]} 14. Rb1 $146 {[%emt 0:06:49]} ({Predecessor:} 14. bxc5 bxc5 15. Qa4 Qxa4 16. Nxa4 Bd7 17. Nc3 {1-0 (56) Khalifman,A (2613)-Sepp,O (2411) Tallinn 2015}) 14... h5 {[%emt 0:01:57]} 15. bxc5 {[%emt 0:08:58]} bxc5 {[%emt 0:00:28]} 16. f3 {[%emt 0:09:38]} Nh7 {[%emt 0:03:17]} 17. Qe1 {[%emt 0:08:20]} Bh6 {[%emt 0:03:48]} 18. Nb5 {[%emt 0:02:50]} Nxb5 {[%emt 0:01:15]} 19. cxb5 {[%emt 0:00:19]} Be3+ {[%emt 0:02:15]} 20. Kh1 {[%emt 0:03:23]} Bxd2 {[%emt 0:05:44]} 21. Qxd2 {[%emt 0:00:11]} f5 {[%emt 0:03:56]} 22. a4 {[%emt 0:11:32]} f4 {[%emt 0:03:57]} 23. a5 {[%emt 0:00:47]} g5 {[%emt 0:00:44]} 24. Bf2 {[%emt 0:01:08]} Rf7 {[%emt 0:04:00]} 25. b6 {[%emt 0:09:56]} axb6 {[%emt 0:01:11]} 26. Rxb6 {[%emt 0:01:04]} Qd8 {[%emt 0:01:02]} 27. Rfb1 {[%emt 0:08:32]} Rfa7 {[%emt 0:02:28]} 28. Be1 {[%emt 0:00:11]} Nf6 {[%emt 0:18:44]} 29. Qb2 {[%emt 0:02:12]} Qe7 {[%emt 0:08:24]} 30. Rb8 {[%emt 0:01:56]} Nd7 {[%emt 0:01:20]} 31. Rxa8 {[%emt 0:00:21]} Rxa8 {[%emt 0:00:04]} 32. Bb5 {[%emt 0:01:31]} Qd8 {[%emt 0:02:47]} 33. Qa2 {[%emt 0:01:22]} Qc7 {[%emt 0:04:00]} 34. Bc6 {[%emt 0:01:59]} Rb8 {[%emt 0:02:06]} 35. h3 {[%emt 0:00:55]} Rxb1 {[%emt 0:00:56]} 36. Qxb1 {[%emt 0:00:02]} g4 {[%emt 0:04:49]} 37. Qb5 {[%emt 0:01:32]} gxh3 {[%emt 0:01:37]} 38. gxh3 {[%emt 0:00:31]} Qa7 {[%emt 0:03:38]} 39. Qf1 {[%emt 0:00:55]} Nb8 {[%emt 0:01:40]} 40. Qg2+ {[%emt 0:00:32]} Kh7 {[%emt 0:05:11]} 41. Be8 {[%emt 0:04:36]} Qg7 {[%emt 0:00:45]} 42. Bxh5 {[%emt 0:01:25]} Na6 {[%emt 0:03:20]} 43. Qxg7+ {[%emt 0:08:10]} Kxg7 {[%emt 0:00:05]} 44. Bg4 {[%emt 0:00:27]} Bb7 {[%emt 0:01:07]} 45. Bd7 {[%emt 0:06:41]} Nb4 {[%emt 0:03:39]} 46. Bb5 {[%emt 0:04:47]} Na6 {[%emt 0:03:02]} 47. Kg2 {[%emt 0:00:32]} Nc7 {[%emt 0:00:41]} 48. Ba4 {[%emt 0:04:10]} (48. Bf1 $142) 48... Ba6 {[%emt 0:00:30]} 49. Bh4 {[%emt 0:04:27]} Kf7 {[%emt 0:00:43]} 50. Kf2 {[%emt 0:01:42]} (50. Bd1 $18) 50... Bc8 $2 {[%emt 0:03:01]} (50... Nb5 51. Ke1 Nc3) 51. Bd8 {[%emt 0:02:33]} Na6 {[%emt 0:00:12]} 52. Bb5 {[%emt 0:00:16]} Nb4 {[%emt 0:00:15]} 53. h4 {[%emt 0:00:16]} Bb7 {[%emt 0:01:04]} 54. h5 {[%emt 0:00:32]} Nxd5 {[%emt 0:01:23]} 55. Bc4 {[%emt 0:01:59]} 1-0

[Event "4NCL Div 1 2018-19"]
[Site "Daventry"]
[Date "2018.11.10"]
[Round "1"]
[White "Willow, Jonah B"]
[Black "Ashton, Adam G"]
[Result "1/2-1/2"]
[ECO "C49"]
[WhiteElo "2224"]
[BlackElo "2332"]
[Annotator "NA"]
[PlyCount "86"]
[EventDate "2018.11.10"]
[EventType "team-tourn"]
[EventCountry "GBR"]
[SourceTitle "playchess.com"]
[Source "ChessBase"]
[SourceQuality "1"]
[TimeControl "40/6000+30:3000+30"]

1. e4 {[%emt 0:00:00]} e5 {[%emt 0:41:28]} 2. Nf3 {[%emt 0:00:00]} Nc6 {[%emt 0:00:04]} 3. Nc3 {[%emt 0:00:00]} Nf6 {[%emt 0:00:03]} 4. Bb5 {[%emt 0:00:00]} Bb4 {[%emt 0:00:42]} 5. O-O {[%emt 0:00:02]} O-O {[%emt 0:00:09]} 6. d3 {[%emt 0:00:13]} Bxc3 {[%emt 0:00:30]} 7. bxc3 {[%emt 0:00:06]} d6 {[%emt 0:00:31]} 8. Bg5 {[%emt 0:00:18]} Qe7 {[%emt 0:00:55]} 9. Re1 {[%emt 0:00:05]} a6 {[%emt 0:01:02] C49: Four Knights: 4 Bb5 Bb4} 10. Bc4 {[%emt 0:11:49]} Na5 {[%emt 0:05:08]} 11. Bd5 $146 {[%emt 0:01:24]} ({Predecessor:} 11. Bb3 h6 12. Bh4 Nxb3 13. cxb3 g5 14. Bg3 Bg4 15. d4 Nd7 16. Qd3 Bxf3 17. Qxf3 {1-0 (72) Sunilduth Lyna,N (2573)-Tarjan,J (2432) Caleta 2018}) 11... c6 {[%emt 0:01:51]} 12. Bb3 {[%emt 0:00:05]} h6 {[%emt 0:01:34]} 13. Bd2 {[%emt 0:07:12]} Nxb3 {[%emt 0:00:54]} 14. axb3 {[%emt 0:01:50]} Be6 {[%emt 0:03:33]} 15. c4 {[%emt 0:04:58]} Nd7 {[%emt 0:02:15]} 16. Bc3 {[%emt 0:08:38]} Bg4 {[%emt 0:09:42]} 17. h3 {[%emt 0:10:17]} Bh5 {[%emt 0:00:52]} 18. d4 {[%emt 0:04:12]} Rad8 {[%emt 0:08:04]} 19. b4 {[%emt 0:13:30]} Bxf3 {[%emt 0:02:58]} 20. Qxf3 {[%emt 0:02:38]} exd4 {[%emt 0:01:04]} 21. Bxd4 {[%emt 0:00:52]} c5 {[%emt 0:01:47]} 22. Bc3 {[%emt 0:05:18]} Ne5 {[%emt 0:03:13]} 23. Bxe5 {[%emt 0:05:08]} dxe5 {[%emt 0:00:24]} 24. b5 {[%emt 0:00:08]} Qe6 {[%emt 0:04:20]} 25. Ra4 {[%emt 0:06:32]} axb5 {[%emt 0:03:00]} 26. cxb5 {[%emt 0:00:48]} Rd4 {[%emt 0:00:27]} 27. Rea1 {[%emt 0:04:28]} Rfd8 {[%emt 0:02:02]} 28. Qa3 {[%emt 0:02:12]} b6 {[%emt 0:02:10]} 29. Ra8 {[%emt 0:03:53]} Kh7 {[%emt 0:01:26]} 30. Rxd8 {[%emt 0:04:11]} Rxd8 {[%emt 0:00:12]} 31. Qf3 {[%emt 0:00:14]} Rd7 {[%emt 0:03:11]} 32. Ra6 {[%emt 0:00:55]} g6 {[%emt 0:00:29]} 33. h4 {[%emt 0:02:26]} h5 {[%emt 0:00:59]} 34. Kh2 {[%emt 0:03:43]} Kg7 {[%emt 0:00:13]} 35. c3 {[%emt 0:02:47]} Rd2 {[%emt 0:01:47]} 36. Ra8 {[%emt 0:05:05]} c4 {[%emt 0:05:17]} 37. Qe3 {[%emt 0:01:07]} Rd3 {[%emt 0:00:29]} 38. Qg5 {[%emt 0:00:06]} Rd7 {[%emt 0:01:52]} 39. Rc8 {[%emt 0:00:41]} Rd6 {[%emt 0:01:12]} 40. Rc7 {[%emt 0:00:21]} Rd3 {[%emt 0:01:06]} 41. Rc6 {[%emt 0:02:02]} Rd6 $11 {[%emt 0:00:22]} 42. Rc7 {[%emt 0:03:08]} Rd3 {[%emt 0:00:12]} 43. Rc6 {[%emt 0:05:15]} Rd6 {[%emt 0:00:48]} 1/2-1/2

[Event "4NCL Div 1 2018-19"]
[Site "Daventry"]
[Date "2018.11.10"]
[Round "1"]
[White "Blackburn, Jonathan L B"]
[Black "Griffiths, Ryan Rhys"]
[Result "0-1"]
[ECO "E21"]
[WhiteElo "2212"]
[BlackElo "2358"]
[Annotator "NA"]
[PlyCount "38"]
[EventDate "2018.11.10"]
[EventType "team-tourn"]
[EventCountry "GBR"]
[SourceTitle "playchess.com"]
[Source "ChessBase"]
[SourceQuality "1"]
[TimeControl "40/6000+30:3000+30"]

1. d4 {[%emt 0:24:48]} Nf6 {[%emt 0:02:32]} 2. c4 {[%emt 0:00:12]} e6 {[%emt 0:00:17]} 3. Nc3 {[%emt 0:00:08]} Bb4 {[%emt 0:00:11]} 4. Nf3 {[%emt 0:01:04]} b6 {[%emt 0:00:12] LiveBook: 4698 Games} 5. Qb3 {[%emt 0:00:57]} c5 {[%emt 0:03:46]} 6. Bg5 {[%emt 0:02:38]} h6 {[%emt 0:00:12]} 7. Bh4 {[%emt 0:02:01]} Nc6 {[%emt 0:00:09]} 8. e3 {[%emt 0:01:27]} cxd4 {[%emt 0:05:07]} 9. Nxd4 {[%emt 0:11:02]} Nxd4 {[%emt 0:03:03]} 10. exd4 {[%emt 0:00:08]} Be7 {[%emt 0:00:07]} 11. Rd1 {[%emt 0:18:49]} Bb7 {[%emt 0:01:15]} 12. d5 {[%emt 0:07:01]} Nxd5 {[%emt 0:12:07]} 13. cxd5 {[%emt 0:00:40]} Bxh4 {[%emt 0:01:39]} 14. dxe6 $17 {[%emt 0:06:47]} fxe6 {[%emt 0:09:57]} 15. Bb5 {[%emt 0:01:02]} O-O {[%emt 0:22:42]} 16. Rxd7 {[%emt 0:00:41]} Qg5 {[%emt 0:17:02]} 17. Rxb7 {[%emt 0:06:32]} Rxf2 {[%emt 0:02:18]} 18. Ne2 {[%emt 0:07:14]} Rf3+ {[%emt 0:04:47]} 19. g3 {[%emt 0:00:26]} Rxb3 {[%emt 0:00:13]} 0-1

[Event "4NCL Div 1 2018-19"]
[Site "Daventry"]
[Date "2018.11.10"]
[Round "1"]
[White "Bremner, Adam"]
[Black "Bulmaga, Irina"]
[Result "0-1"]
[ECO "E15"]
[WhiteElo "2210"]
[BlackElo "2386"]
[Annotator "NA"]
[PlyCount "124"]
[EventDate "2018.11.10"]
[EventType "team-tourn"]
[EventCountry "GBR"]
[SourceTitle "playchess.com"]
[Source "ChessBase"]
[SourceQuality "1"]
[TimeControl "40/6000+30:3000+30"]

1. d4 {[%emt 0:00:57]} Nf6 {[%emt 0:00:00]} 2. c4 {[%emt 0:00:08]} e6 {[%emt 0:00:00]} 3. Nf3 {[%emt 0:00:11]} b6 {[%emt 0:00:11]} 4. g3 {[%emt 0:00:10]} Ba6 {[%emt 0:00:16]} 5. Qc2 {[%emt 0:00:29]} Bb4+ {[%emt 0:04:52]} 6. Bd2 {[%emt 0:00:30] E15: Queen's Indian: 4 g3 sidelines, 4 g3 Ba6 and 4 g3 Bb7 early deviations} Bxd2+ {[%emt 0:02:07]} (6... Be7 7. Bg2 c6 8. O-O d5 9. b3 Nbd7 10. Bc3 dxc4 11. Bb2 cxb3 12. axb3 Bb7 13. Nbd2 Nd5 14. Ne5 Nb4 15. Qc1 O-O 16. Rd1 a5 17. Ndc4 Nf6 {½-½ (58) Adhiban,B (2666)-Zhigalko,S (2671) Doha 2016}) 7. Nbxd2 {[%emt 0:00:14]} d5 {[%emt 0:05:13]} 8. cxd5 {[%emt 0:03:23]} exd5 {[%emt 0:00:40]} 9. Rc1 {[%emt 0:00:28]} c6 {[%emt 0:02:41]} 10. Ne5 {[%emt 0:01:07]} O-O {[%emt 0:01:43]} 11. e3 {[%emt 0:08:33]} Bxf1 {[%emt 0:18:38]} 12. Kxf1 {[%emt 0:00:10]} Re8 {[%emt 0:07:14]} 13. Kg2 $146 {[%emt 0:08:37]} ({Predecessor:} 13. Nd3 a5 {1-0 (53) Berczes,D (2512)-Rigo,J (2325) Harkany 2009}) 13... c5 {[%emt 0:06:35]} 14. Rhd1 {[%emt 0:03:58]} c4 {[%emt 0:10:08]} 15. Qf5 {[%emt 0:10:47]} Nbd7 {[%emt 0:04:57]} 16. Nxd7 {[%emt 0:03:32]} Qxd7 {[%emt 0:00:32]} 17. Qxd7 {[%emt 0:00:11]} Nxd7 {[%emt 0:00:06]} 18. e4 {[%emt 0:00:09]} b5 {[%emt 0:05:17]} 19. e5 {[%emt 0:02:04]} Nb6 {[%emt 0:12:03]} 20. f4 {[%emt 0:03:32]} Na4 {[%emt 0:01:37]} 21. Rc2 {[%emt 0:01:11]} b4 {[%emt 0:00:32]} 22. Nf1 {[%emt 0:06:11]} a5 {[%emt 0:03:09]} 23. Ne3 {[%emt 0:00:39]} Red8 {[%emt 0:00:40]} 24. Rdc1 {[%emt 0:00:56]} h6 {[%emt 0:06:56]} 25. g4 {[%emt 0:03:44]} Rab8 {[%emt 0:02:28]} 26. b3 {[%emt 0:05:20]} cxb3 {[%emt 0:01:06]} 27. axb3 {[%emt 0:00:09]} Nc3 {[%emt 0:00:12]} 28. Nf5 {[%emt 0:01:38]} Kf8 {[%emt 0:01:35]} 29. Kf3 {[%emt 0:00:32]} Rdc8 {[%emt 0:03:27]} 30. Ne3 {[%emt 0:02:20]} Rd8 {[%emt 0:01:28]} 31. Nf5 {[%emt 0:00:17]} Ra8 {[%emt 0:01:40]} 32. Rb2 {[%emt 0:07:20]} Rdc8 {[%emt 0:01:07]} 33. Ne3 {[%emt 0:02:59]} Rd8 {[%emt 0:01:50]} 34. Nf5 {[%emt 0:00:23]} a4 {[%emt 0:01:09]} 35. bxa4 {[%emt 0:00:28]} Rxa4 {[%emt 0:00:02]} 36. Rb3 {[%emt 0:00:35]} Rda8 {[%emt 0:00:44]} 37. Kg2 {[%emt 0:06:55]} Ra2+ {[%emt 0:01:55]} 38. Kh3 {[%emt 0:00:25]} R2a3 {[%emt 0:00:34]} 39. Rxa3 {[%emt 0:01:01]} bxa3 {[%emt 0:00:21]} 40. Rxc3 {[%emt 0:01:30]} a2 {[%emt 0:00:03]} 41. Rc1 {[%emt 0:50:10]} a1=Q {[%emt 0:50:13]} 42. Rxa1 {[%emt 0:00:05]} Rxa1 {[%emt 0:00:05]} 43. Kg3 {[%emt 0:01:34]} Ra4 {[%emt 0:00:22]} 44. Kf3 {[%emt 0:00:25]} g6 {[%emt 0:00:48]} 45. Nxh6 {[%emt 0:00:11]} Rxd4 {[%emt 0:00:22]} 46. h4 {[%emt 0:01:14]} Rd3+ {[%emt 0:00:35]} 47. Ke2 {[%emt 0:00:12]} Rh3 {[%emt 0:00:43]} 48. h5 {[%emt 0:01:31]} gxh5 {[%emt 0:03:13]} 49. gxh5 {[%emt 0:00:05]} Rxh5 {[%emt 0:00:08]} 50. Ng4 {[%emt 0:00:05]} Ke7 {[%emt 0:00:49]} 51. Nf6 {[%emt 0:01:04]} Rh2+ {[%emt 0:01:18]} 52. Ke3 {[%emt 0:00:28]} Ke6 {[%emt 0:00:14]} 53. Ne8 {[%emt 0:00:29]} Kd7 {[%emt 0:00:00]} 54. Nf6+ {[%emt 0:00:00]} Kc6 {[%emt 0:00:00]} 55. f5 {[%emt 0:00:00]} Rh3+ {[%emt 0:00:00]} 56. Kf4 {[%emt 0:00:00]} d4 {[%emt 0:00:00]} 57. e6 $19 {[%emt 0:00:00]} fxe6 {[%emt 0:00:00]} 58. fxe6 {[%emt 0:00:00]} Re3 {[%emt 0:00:00]} 59. Ne4 {[%emt 0:00:00]} Kd5 {[%emt 0:00:00]} 60. Ng5 {[%emt 0:00:00]} Re5 {[%emt 0:00:00]} 61. Kg4 {[%emt 0:00:00]} d3 {[%emt 0:00:00]} 62. Nh3 {[%emt 0:00:00]} d2 {[%emt 0:00:00]} 0-1